[Event "Chpt Reg Jeunes Occitanie 2026 - Espalion"]
[Site "Espalion, France"]
[Round "9.19"]
[ECO "?"]
[Annotator "?"]
[TimeControl "1h30 + 30sec/cp"]

1. d4 {[%clk 1:30:54][%emt 0:00:05]} 1... d5 {[%clk 1:30:23][%emt 0:01:07]} 2.
c4 {[%clk 1:31:20][%emt 0:00:04]} 2... e6 {[%clk 1:30:42][%emt 0:00:11]} 3. g3
{[%clk 1:31:45][%emt 0:00:05]} 3... Nf6 {[%clk 1:30:49][%emt 0:00:23]} 4. Bg2
{[%clk 1:32:10][%emt 0:00:05]} 4... c6 {[%clk 1:31:11][%emt 0:00:08]} 5. Nf3
{[%clk 1:32:33][%emt 0:00:06]} 5... Be7 {[%clk 1:31:10][%emt 0:00:32]} 6. O-O
{[%clk 1:32:46][%emt 0:00:17]} 6... O-O {[%clk 1:30:50][%emt 0:00:49]} 7. Bg5
{[%clk 1:33:06][%emt 0:00:11]} 7... Nbd7 {[%clk 1:30:35][%emt 0:00:45]} 8. Nc3
{[%clk 1:32:20][%emt 0:01:16]} 8... b6 {[%clk 1:29:21][%emt 0:01:45]} 9. Qa4
{[%clk 1:22:50][%emt 0:09:59]} 9... Bb7 {[%clk 1:29:12][%emt 0:00:39]} 10.
Rac1 {[%clk 1:18:21][%emt 0:04:59]} 10... Re8 {[%clk 1:27:16][%emt 0:02:26]}
11. Rfd1 {[%clk 1:16:30][%emt 0:02:20]} 11... h6 {[%clk 1:25:22][%emt 0:02:25]}
 12. Bf4 {[%clk 1:15:42][%emt 0:01:17]} 12... dxc4 {[%clk 1:22:44][%emt
0:03:09]} 13. Qxc4 {[%clk 1:13:42][%emt 0:02:30]} 13... Nd5 {[%clk
1:22:59][%emt 0:00:15]} 14. Nxd5 {[%clk 1:12:45][%emt 0:01:27]} 14... exd5
{[%clk 1:22:47][%emt 0:00:41]} 15. Qd3 {[%clk 1:02:51][%emt 0:10:25]} 15...
Bf6 {[%clk 1:22:37][%emt 0:00:40]} 1/2-1/2

[White "PRIOL RAMIERE, Sullivan"]
[Black "BONDAR, Marko"]
[WhiteElo "1646"]
[BlackElo "1609"]
[Result "1-0"]
[Date "2026.03.08"]